Cogmind - Beta 13 @@@ ROGUE MODE // 2024.03.03 @ 12:26:33 Player: Wakanaka Result: Destroyed by as-46627 with Assembled Rifle Performance ------------- Evolutions (1) 500 Regions Visited (4) 800 Robots Destroyed (29) 145 Value Destroyed (653) 653 Prototype IDs (1) 20 Alien Tech Used (0) 0 Bonus (28) 28 TOTAL SCORE: 2146 Bonus ------- Follower Combat Kills 28 Cogmind --------- Core Integrity 0/400 Matter 259/300 Energy 120/140 System Corruption 10% Temperature Cool (0) Movement Core (150) Ox2 Location -9/Mines Parts ------- > --- POWER (1) -------- Light Deuterium Engine > --- PROPULSION (4) --- (None) > --- UTILITY (2) ------ Medium Storage Unit Weight Redist. System > --- WEAPON (2) ------- Beam Cannon Heavy Assault Rifle > --- INVENTORY (10) --- Light Deuterium Engine Huge Storage Unit Improved Terrain Scanner Seismic Detector ECM Suite Core Shielding Peak State ------------ > --- POWER ------------ Light Nuclear Core > --- PROPULSION ------- Wheel Wheel Wheel Wheel > --- UTILITY ---------- Medium Storage Unit ECM Suite > --- WEAPON ----------- Improved EM Shotgun Particle Gun > --- INVENTORY -------- Light Deuterium Engine Light Deuterium Engine Light Deuterium Engine Wheel Huge Storage Unit Improved Terrain Scanner Seismic Detector Beam Rifle [Rating: 15] Favorites ----------- Power Light Ion Engine Engine Light Ion Engine Power Core Light Nuclear Core Propulsion Wheel Wheel Wheel Hover Unit Improved Hover Unit Utility Medium Storage Unit Device ECM Suite Storage Medium Storage Unit Weapon Medium Laser Energy Gun Medium Laser Energy Cannon Beam Cannon Ballistic Gun Heavy Assault Rifle Special Weapon Mining Laser Build | -11 -10 -10 -9 -9 ------- Run | Yrd Mat Min Mat Min Slots Evolved 2 | . . . 2 . Power . | . . . . . Propulsion 2 | . . . 2 . Utility . | . . . . . Weapon . | . . . . . Parts Attached 44 | 8 6 . 24 6 Power 8 | 2 . . 4 2 Engine 6 | 2 . . 3 1 Core 2 | . . . 1 1 Reactor . | . . . . . Propulsion 15 | 2 3 . 10 . Treads . | . . . . . Leg . | . . . . . Wheel 12 | 2 3 . 7 . Hover 3 | . . . 3 . Flight . | . . . . . Utility 8 | 2 3 . 3 . Device 3 | 1 1 . 1 . Storage 5 | 1 2 . 2 . Processor . | . . . . . Hackware . | . . . . . Protection . | . . . . . Artifact . | . . . . . Weapon 13 | 2 . . 7 4 Energy Gun 7 | 2 . . 5 . Energy Cannon 2 | . . . 1 1 Ballistic Gun 3 | . . . 1 2 Ballistic Cannon . | . . . . . Launcher . | . . . . . Special Weapon 1 | . . . . 1 Impact Weapon . | . . . . . Slashing Weapon . | . . . . . Piercing Weapon . | . . . . . Special Melee Weapon . | . . . . . Unidentified Prototypes 1 | . . . 1 . Parts Lost 20 | . 1 . 11 8 Power 2 | . . . 1 1 Propulsion 11 | . 1 . 6 4 Utility . | . . . . . Weapon 7 | . . . 4 3 Highest Loss Streak 8 | . 1 . 5 8 To Critical Strikes . | . . . . . Average Slot Usage (%) 91 | . 98 100 84 92 Engine 10 | . 14 14 8 3 Core 1 | . . . 1 7 Wheel 27 | . 26 28 26 37 Hover 2 | . . . 5 . Device 12 | . 14 14 11 11 Storage 12 | . 14 14 11 11 Energy Gun 19 | . 28 28 14 . Energy Cannon 1 | . . . 2 9 Ballistic Gun 1 | . . . 2 7 Naked Turns . | . . . . . Heaviest Build 89 | 15 89 19 23 21 Greatest Support 46 | 20 20 20 46 46 Greatest Overweight (x) 4 | . 4 . 1 . Average Overweight (x) . | . . . . . Largest Inventory Capacity 25 | 8 25 10 25 10 Average Capacity 9 | 7 9 10 10 10 Most Carried 10 | 6 9 8 10 10 Average Carried 7 | 2 7 7 8 9 Final Capacity 10 | 8 10 10 10 10 Final Carried 10 | 6 7 8 10 6 Class Distribution -------------------- 73% | Mutant 26% | Scavenger-Mutant Dominant Class ---------------- Mutant | -10/Materials Mutant | -10/Mines Mutant | -9/Materials Scavenger-Mutant | -9/Mines Resources | -11 -10 -10 -9 -9 ----------- Run | Yrd Mat Min Mat Min Matter Collected 714 | 280 149 . 251 34 Remotely . | . . . . . Salvage Created 1099 | 156 188 92 557 106 Parts 67 | 8 13 2 42 2 Haulers Intercepted . | . . . . . Recyclers Shooed 1 | . 1 . . . Parts Field Recycled . | . . . . . Retrieved Matter . | . . . . . Parts Self-Destructed . | . . . . . Prevented . | . . . . . Kills | -11 -10 -10 -9 -9 ------- Run | Yrd Mat Min Mat Min Combat Hostiles Destroyed 16 | . 3 . 9 4 Guns 11 | . 3 . 6 2 Cannons 5 | . . . 3 2 Classes Destroyed 9 | 3 2 . 3 1 Worker 3 | 1 1 . 1 . Builder 3 | . . . 3 . Tunneler 5 | 2 1 . 2 . Recycler 1 | 1 . . . . Operator 2 | . . . 2 . Watcher 1 | . 1 . . . Grunt 10 | . 3 . 5 2 Sentry 4 | . . . 4 . Assembled 2 | . . . . 2 Best Kill Streak 5 | 3 2 . 5 2 Combat Bots Only 2 | . 2 . 2 2 Max Kills in Single Turn 1 | 1 1 . 1 1 Gunslinging . | . . . . . Exploded . | . . . . . Melee . | . . . . . Uniques/NPCs Destroyed . | . . . . . Combat | -11 -10 -10 -9 -9 -------- Run | Yrd Mat Min Mat Min Hostile Shots Fired 179 | . 20 . 107 52 Missed 51 | . 11 . 24 16 Damage Taken 1768 | . 134 . 1077 557 Core 455 | . 45 . 256 154 Absorbed by Shields . | . . . . . Core Remaining (%) 91 | 100 . 82 . . Volleys Fired 110 | 15 21 3 59 12 Largest 2 | 2 2 2 2 2 Hottest 160 | 100 100 100 121 160 Shots Fired 209 | 30 42 6 112 19 Gun 180 | 30 42 6 93 9 Cannon 27 | . . . 19 8 Launcher . | . . . . . Special 2 | . . . . 2 Kinetic 28 | . . . 19 9 Thermal 174 | 30 42 6 86 10 Explosive . | . . . . . Electromagnetic 7 | . . . 7 . Robot Hit Streak 13 | 5 10 2 13 4 Robot Miss Streak 7 | 2 6 3 7 3 Penetration Max . | . . . . . Secondary Targets 4 | . 1 . 2 1 Max Gunslinging Chain 1 | . 1 . 1 1 Shots Hit Robots 123 | 18 24 4 66 11 Core Hits 51 | 5 11 2 26 7 Critical Kills . | . . . . . Critical Parts Destroyed . | . . . . . Critical Strikes 11 | 2 5 . 4 . Burn 10 | 2 5 . 3 . Corrupt 1 | . . . 1 . Melee Attacks . | . . . . . Impact . | . . . . . Slashing . | . . . . . Piercing . | . . . . . Sneak Attacks . | . . . . . Combat Hostiles . | . . . . . Follow-up Attacks . | . . . . . Damage Inflicted 1763 | 249 302 49 974 189 Guns 1493 | 249 302 49 798 95 Cannons 246 | . . . 176 70 Explosions . | . . . . . Melee . | . . . . . Ramming . | . . . . . Kinetic 235 | . . . 140 95 Thermal 1433 | 249 302 49 739 94 Explosive . | . . . . . Electromagnetic 95 | . . . 95 . Impact . | . . . . . Slashing . | . . . . . Piercing . | . . . . . Highest Corruption 10 | . . . . 10 Average Corruption 9 | . . . . 9 Corruption Purged . | . . . . . Corruption Blocked . | . . . . . Effects 2 | . . . . 2 Message Errors 2 | . . . . 2 Overload Shots . | . . . . . Overflow Damage . | . . . . . Projectiles . | . . . . . Explosions . | . . . . . Melee . | . . . . . Knockbacks . | . . . . . Impact . | . . . . . Kinetic . | . . . . . Secondary . | . . . . . Self-Inflicted Damage . | . . . . . Shots . | . . . . . Rammed . | . . . . . Targets Rammed . | . . . . . Kicked . | . . . . . Crushed . | . . . . . Highest Temperature 351 | 234 297 78 351 82 Average Temperature 84 | 127 90 37 79 28 Received Heat Transfer 558 | . 75 . 474 9 Siege Activations . | . . . . . Robots Corrupted . | . . . . . Combat Hostiles . | . . . . . Parts Fried . | . . . . . Impact Corruptions . | . . . . . Robots Melted . | . . . . . Combat Hostiles . | . . . . . Parts Melted 4 | . 1 . 3 . Heat Transferred 4601 | 888 1258 148 2109 198 Parts Sabotaged . | . . . . . Parts Stolen . | . . . . . Parts Stripped . | . . . . . Power Chain Reactions . | . . . . . Alert | -11 -10 -10 -9 -9 ------- Run | Yrd Mat Min Mat Min Peak Influence 256 | 20 76 10 256 149 Initial 99 | . 13 . 3 99 Average 66 | 7 64 8 86 135 Maximum Alert Level 1 | . . . 1 . Low Security (%) 94 | 100 100 100 87 100 Level 1 5 | . . . 12 . Level 2 . | . . . . . Level 3 . | . . . . . Level 4 . | . . . . . Level 5 . | . . . . . High Security . | . . . . . Max Security . | . . . . . Squads Dispatched 8 | . 3 . 5 . Investigation 4 | . 1 . 3 . Extermination . | . . . . . Reinforcement 4 | . 2 . 2 . Assault . | . . . . . Garrison . | . . . . . Intercept . | . . . . . Searches Triggered . | . . . . . Construction Impeded . | . . . . . Haulers Reinforced . | . . . . . Active Scanning Responses . | . . . . . Cargo Convoy Interrupts . | . . . . . Stealth | -11 -10 -10 -9 -9 --------- Run | Yrd Mat Min Mat Min Distress Signals 1 | . . . 1 . Communications Jammed . | . . . . . Distress Signals . | . . . . . Times Spotted 55 | . 7 1 32 15 Peak Tracking Total 17 | . 3 2 8 17 Tactical Retreats 12 | . 1 1 10 . Traps | -11 -10 -10 -9 -9 ------- Run | Yrd Mat Min Mat Min Traps Triggered 3 | . 1 . 2 . Indirectly . | . . . . . Trap Hack Attempts . | . . . . . Triggered . | . . . . . Disarmed . | . . . . . Reprogrammed . | . . . . . Reused . | . . . . . Traps Extracted . | . . . . . Installed . | . . . . . Triggered . | . . . . . Machines | -11 -10 -10 -9 -9 ---------- Run | Yrd Mat Min Mat Min Machines Disabled . | . . . . . Max in Single Turn . | . . . . . Machines Repaired . | . . . . . Machines Dismantled . | . . . . . Machines Sabotaged . | . . . . . Overloaded Fab Kills . | . . . . . Hacking | -11 -10 -10 -9 -9 --------- Run | Yrd Mat Min Mat Min Machines Accessed 3 | . 1 . 2 . Terminals 3 | . 1 . 2 . Fabricators . | . . . . . Repair Stations . | . . . . . Recycling Units . | . . . . . Scanalyzers . | . . . . . Garrison Access . | . . . . . Total Hacks 11 | . 4 . 7 . Successful 6 | . 3 . 3 . Failed 5 | . 1 . 4 . Catastrophic 1 | . 1 . . . Database Lockouts . | . . . . . Manual . | . . . . . Terminals 11 | . 4 . 7 . Fabricators . | . . . . . Repair Stations . | . . . . . Recycling Units . | . . . . . Scanalyzers . | . . . . . Garrison Access . | . . . . . Terminal Hacks 6 | . 3 . 3 . Record 2 | . . . 2 . Unreport Threat 2 | . 1 . 1 . Locate Traps 1 | . 1 . . . Zone Layout 1 | . 1 . . . Fabricator Hacks . | . . . . . Repair Station Hacks . | . . . . . Recycling Unit Hacks . | . . . . . Scanalyzer . | . . . . . Garrison Access Hacks . | . . . . . Unauthorized Hacks . | . . . . . Terminals . | . . . . . Fabricators . | . . . . . Repair Stations . | . . . . . Recycling Units . | . . . . . Scanalyzers . | . . . . . Garrison Access . | . . . . . Data Cores Recovered . | . . . . . Used . | . . . . . Hacking Detections 2 | . 1 . 1 . Full Trace Events 1 | . . . 1 . Feedback Events . | . . . . . Feedback Blocked . | . . . . . Robot Schematics Acquired . | . . . . . Robots Built . | . . . . . Authchips . | . . . . . Time . | . . . . . Total Robot Build Rating . | . . . . . Part Schematics Acquired . | . . . . . Parts Built . | . . . . . Authchips . | . . . . . Time . | . . . . . Total Part Build Rating . | . . . . . Parts Repaired . | . . . . . Time . | . . . . . Parts Recycled . | . . . . . Recycled Matter . | . . . . . Retrieved Matter . | . . . . . Retrieved Components . | . . . . . Parts Scanalyzed . | . . . . . Part Schematics Acquired . | . . . . . Parts Damaged . | . . . . . Bothacking | -11 -10 -10 -9 -9 ------------ Run | Yrd Mat Min Mat Min Used RIF Installer . | . . . . . Robots Hacked . | . . . . . Non-combat . | . . . . . Combat . | . . . . . Robot Hacks Applied . | . . . . . Relay Couplers Released . | . . . . . Fabnet Peak Effective % . | . . . . . Robots Rewired . | . . . . . Allies Hacked . | . . . . . Hacks Repelled . | . . . . . Allies | -11 -10 -10 -9 -9 -------- Run | Yrd Mat Min Mat Min Total Allies 4 | . . 3 . 1 Largest Group 3 | . . 3 3 1 Highest-Rated Group 40 | . . 40 40 31 Highest-Rated Ally 31 | . . 16 16 31 Total Orders . | . . . . . Ally Attacks 25 | . . . 16 9 Total Damage 313 | . . . 190 123 Kills 8 | . . . 4 4 Allies Corrupted . | . . . . . Allies Melted . | . . . . . Intel | -11 -10 -10 -9 -9 ------- Run | Yrd Mat Min Mat Min Robot Analysis Total . | . . . . . Derelict Logs Recovered 1 | . . . . 1 Drone Launches . | . . . . . Drone Recoveries . | . . . . . Exploration | -11 -10 -10 -9 -9 ------------- Run | Yrd Mat Min Mat Min Turns Passed 1630 | 112 411 258 725 124 Spaces Moved 1173 | 56 213 243 581 80 Core 15 | 6 . . 9 . Treads . | . . . . . Legs . | . . . . . Wheels 1042 | 50 213 243 456 80 Hover 116 | . . . 116 . Flight . | . . . . . Fastest Speed 50 | 50 80 80 52 80 Average Speed 80 | 76 81 80 79 80 Slowest Speed 140 | 80 140 80 116 80 Overloaded Moves . | . . . . . Propulsion Burnouts . | . . . . . Robots Hopped . | . . . . . Cave-ins Triggered . | . . . . . Exploration Rate (%) 31 | 4 26 69 35 25 Regions Visited 4 Branch Regions 2 Pre-discovered Areas 1 | . . 1 . . Known Exits Taken . | . . . . . Unknown Exits Taken 4 | 1 1 1 1 . Scrap Searched 1 | . . 1 . . Spaces Dug . | . . . . . Terrain Destroyed . | . . . . . Melee . | . . . . . Projectile . | . . . . . AOE . | . . . . . Terrain Rammed . | . . . . . Walls Destroyed . | . . . . . Machines Disabled . | . . . . . Actions | -11 -10 -10 -9 -9 --------- Run | Yrd Mat Min Mat Min Total 1652 | 95 408 300 731 118 Wait 258 | . 153 54 34 17 Move 1169 | 55 212 242 580 80 Hop . | . . . . . Pick Up 47 | 15 8 1 22 1 Fast Attach 6 | . 1 . 5 . Attach 25 | 7 . . 14 4 Detach . | . . . . . Swap 13 | 1 5 . 5 2 Drop 24 | 2 8 . 12 2 Fire 110 | 15 21 3 59 12 Melee . | . . . . . Ram . | . . . . . Kick . | . . . . . Crush . | . . . . . Escape Stasis . | . . . . . Rewire . | . . . . . Trap . | . . . . . Miscellaneous . | . . . . . Route ------- -11/Scrapyard -10/Materials (discovered 2 exits: [*Min x2]) -10/Mines (discovered 2 exits: *Mat x2) -9/Materials -9/Mines History --------- Turn | Location | Event 21 | -11/Scrapyard | Discovered new exit (range 16) 113 | -11/Scrapyard | Entered Materials 141 | -10/Materials | Discovered new exit (range 16) 173 | -10/Materials | Discovered new exit (range 15) 301 | -10/Materials | Build established: Mutant 524 | -10/Materials | Entered Mines 563 | -10/Mines | Met a Derelict bent on vengeance 610 | -10/Mines | Learned location of Storage (-7) 625 | -10/Mines | Discovered new exit (range 9) 631 | -10/Mines | Assisted by bots powering up and referring to "LRC-V3" 742 | -10/Mines | Discovered new exit (range 11) 782 | -10/Mines | Entered Materials 782 | -9/Materials | Accompanied by 3 allies 782 | -9/Materials | Evolved 2 slots: Propulsion x2 970 | -9/Materials | Lost 3 allies 1102 | -9/Materials | Lost 3 parts (3n) 1287 | -9/Materials | Core integrity fell below 50% 1307 | -9/Materials | Lost 5 parts (1p2n2w) 1495 | -9/Materials | Discovered new exit (range 15) 1507 | -9/Materials | Entered Mines 1564 | -9/Mines | Received a Mining Laser from a helpful Derelict 1585 | -9/Mines | Assembled infested the area 1590 | -9/Mines | Assisted by a Guerilla fighting off Assembled 1594 | -9/Mines | Learned Materials terminal intel 1618 | -9/Mines | System corruption reached 10% 1626 | -9/Mines | Core integrity fell below 20% 1631 | -9/Mines | Destroyed by as-46627 with Assembled Rifle Last Messages --------------- 01610_ HV Slug penetrates as-04261. 01610_ as-57165 suffers critical hit (Destroy). 01610_ as-57165 destroyed. 01611_ as-30474 destroyed. 01612_ L4-6ZA(h) destroyed. 01614_ Mining Laser destroyed. 01614_ Wheel destroyed. 01614_ System corrupted by crushing effect (+5). 01614_ System corrupted by crushing effect (+3). 01614_ Wheel destroyed. 01616_ AKOXCBBWW Map ----- +----------------------------------------------------+ | ?????????????????????????????????????????????????? | | ?????????????????????????????????????????????????? | | ?????????????????????????????????????????????????? | | ?????????????????????????????????????????????????? | | ?????????????????????????????????????????????????? | | ?????????????????????????????????????????????????? | | ?????????????????????????????????????????????????? | | ?????????????????????????????????????????????????? | | ?????????????????????????????????????????????????? | | ?????????????????????????????????????????????????? | | ?????????????????????????????????????????????????? | | ?????????????????????????????????????????????????? | | ?????????????????????????????????????????????????? | | ?????????????????????????????????????????????????? | | ?????????????????????????????????????????????????? | | ?????????????????????????????????????????????????? | | ?????????????????????????????????????????????????? | | ?????????????????????????????????????????????????? | | ?????????????????????????????????????????????????? | | ?????????????????????????????????????????????????? | | ?????????????????????????????????????????????????? | | ?????????????????????????????????????????????????? | | ????????????????????#######??????????????????????? | | ????????????????????# aa#####??????????? ??????? | | ????????????????????# ##aa%%%#####?????? ??????? | | ????????????????????# ##@! % a ?????? | | ????????????????????# #####% ??????? | | ????????????????????# ##??? %% *???????? | | ???????????????????## ###### |????????? | | ???????????????????# #? #??????????? | | ?????????????????# ##### ## ##??????????? | | ????????????????# ##???# #???????????? | | ????????????????# #????# ### ##???????????? | | ????????????????# ##????# #?????????????????? | | ???????????????#$ ######### ###???????????????? | | ?????????????? #??## [ #???????????????? | | ????????????? #??## #???????????????? | | ???????????? #???# ## #???????????????? | | ???????????? #????# ### #???????????????? | | ????????????? #?????## ##?# #???????????????? | | ?????????????? #???????#####??# #???????????????? | | ??????????????????????????????# #???????????????? | | ??????????????????????????????# #???????????????? | | ??????????????????????????????# #???????????????? | | ??????????????????????????????# ##??????????????? | | ??????????????????????????????# ##?????????????? | | ?????????????????????????????## ######????????? | | ?????????????????????????????# #????????? | | ????????????????????????????# #### #????????? | | ??????????????????????? #??# #????????? | +----------------------------------------------------+ Best States ------------- Heat Dissipation 28 Energy Generation 14 Energy Capacity 250 Matter Stores 300 Matter Capacity 300 Sight Range 16 Terrain Scan Density 10 ECM Strength 1 Additional Mass Support 6 Evasion (%) 53 Item Schematics ----------------- None Robot Schematics ------------------ None Fabricated ------------ Nothing Alien Tech Used ----------------- None Achievements -------------- None Challenges ------------ None Game ------ Seed PlatingTargetingBlaster Manual? 0 Play Time 00:30:35 Cumulative 48.1 hours Start 2024.03.03 @ 11:57:33 End 2024.03.03 @ 12:26:33 Sessions 1 Manual Loads 0 Difficulty Rogue Special Mode None Game No. 58 Rogue 58 Adventurer 0 Explorer 0 Win Type - Total 0 Types 0/0/0/0/0/0/0/0/0 Lore% 22 Gallery% 31 Achievement% 26 Wizard Run 0 Options --------- Layout 1 ASCII 0 Keyboard 0 Movement Mouse Keybinds 0 Fullscreen 1 Font 24/Smallcaps Map View 50x35 Zoom Use 0% Tactical HUD 1 Map Filters NONE Filters NONE Steam 1 RUN: caad3df2-e9cc-4e04-8b9d-23a3f1ecf1c5